[Event "FIDE WCCC Open-10 2024"]
[Site "Montesilvano"]
[Date "2024.11.25"]
[Round "10.5"]
[White "Lee, Yugeon"]
[Black "Gim, Hajin"]
[Result "1-0"]
[Annotator "NA RC"]
[ECO "A59"]
[WhiteElo "1690"]
[BlackElo "1603"]
[PlyCount "131"]
[EventDate "2024.11.18"]
[EventType "swiss"]
[EventCountry "ITA"]
[SourceTitle "playchess.com"]
[Source "ChessBase"]
[SourceQuality "1"]
[TimeControl "5400+30"]

1. d4 {[%emt 0:00:04]} Nf6 {[%emt 0:00:03]} 2. c4 {[%emt 0:00:12]} c5 {[%emt 0:00:03]} 3. d5 {[%emt 0:00:13]} b5 {[%emt 0:00:04]} 4. cxb5 {[%emt 0:00:09]} a6 {[%emt 0:00:05]} 5. bxa6 {[%emt 0:00:10]} g6 {[%emt 0:00:04]} 6. Nc3 {[%emt 0:00:13]} Bxa6 {[%emt 0:00:12]} 7. e4 {[%emt 0:00:32]} Bxf1 {[%emt 0:00:06]} 8. Kxf1 {[%emt 0:00:04]} d6 {[%emt 0:00:06]} 9. a4 {[%emt 0:00:05]} Bg7 {[%emt 0:00:09]} 10. g3 {[%emt 0:00:05]} O-O {[%emt 0:00:07]} 11. Kg2 {[%emt 0:00:03]} Nbd7 {[%emt 0:00:06]} 12. Nf3 {[%emt 0:00:26]} Qb6 {[%emt 0:00:26]} 13. Qe2 {[%emt 0:00:41]} Rfb8 {[%emt 0:00:46]} 14. Nb5 {[%emt 0:03:17]} Qa6 {[%emt 0:00:30]} 15. Ra3 {[%emt 0:06:31]} Nb6 {[%emt 0:01:10]} 16. b3 {[%emt 0:01:39]} Ne8 {[%emt 0:04:15]} 17. Re1 {[%emt 0:13:15]} Nd7 {[%emt 0:01:24]} 18. Nd2 {[%emt 0:01:13]} Nb6 {[%emt 0:12:10]} 19. Nc4 {[%emt 0:03:04]} Nxc4 {[%emt 0:00:23]} 20. bxc4 {[%emt 0:01:58]} Qb6 {[%emt 0:01:25]} 21. f4 {[%emt 0:05:07]} Nc7 {[%emt 0:04:26]} 22. e5 {[%emt 0:05:29]} Nxb5 {[%emt 0:02:44]} 23. cxb5 {[%emt 0:00:51]} Qb7 {[%emt 0:00:29]} 24. Qf3 {[%emt 0:01:26]} dxe5 {[%emt 0:01:36]} 25. fxe5 {[%emt 0:01:48]} Rd8 {[%emt 0:00:10]} 26. Bf4 {[%emt 0:05:22]} c4 {[%emt 0:05:27]} 27. d6 {[%emt 0:04:18]} Qxf3+ {[%emt 0:00:13]} 28. Kxf3 {[%emt 0:00:08]} exd6 {[%emt 0:00:14]} 29. exd6 {[%emt 0:00:41]} g5 {[%emt 0:00:30]} 30. Bxg5 {[%emt 0:01:51]} Rxd6 {[%emt 0:00:10]} 31. Bf4 {[%emt 0:02:30]} Rb6 {[%emt 0:01:13]} 32. Rb1 {[%emt 0:01:53]} c3 {[%emt 0:01:06]} 33. Ra2 {[%emt 0:00:32]} c2 {[%emt 0:04:36]} 34. Rxc2 {[%emt 0:02:06]} Raa6 {[%emt 1:01:02]} 35. a5 Rxa5 {[%emt 0:00:00]} 36. Rc6 {[%emt 0:00:56]} Ra4 {[%emt 0:00:00]} 37. Rxb6 {[%emt 0:40:08]} Bd4 38. Rb3 {[%emt 0:00:00]} Bc5 {[%emt 0:02:00]} 39. Rb1 Bxb6 {[%emt 0:00:00]} 40. Rb3 {[%emt 0:00:00]} Kf8 {[%emt 0:00:00]} 41. Be3 {[%emt 0:00:00]} Bxe3 {[%emt 0:00:00]} 42. Kxe3 {[%emt 0:00:00]} Ke7 {[%emt 0:00:00]} 43. b6 {[%emt 0:00:00]} Ra8 {[%emt 0:00:00]} 44. b7 {[%emt 0:00:00]} Rb8 {[%emt 0:00:00]} 45. Kf4 {[%emt 0:00:00]} Kf6 {[%emt 0:00:00]} 46. Rb6+ {[%emt 0:00:00]} Ke7 {[%emt 0:00:00]} 47. Kg5 {[%emt 0:00:00]} f6+ {[%emt 0:00:00]} 48. Kf5 {[%emt 0:00:00]} h5 {[%emt 0:00:00]} 49. h4 {[%emt 0:00:00]} Kd7 {[%emt 0:00:00]} 50. Rxf6 {[%emt 0:00:00]} Ke7 {[%emt 0:00:00]} 51. Rb6 {[%emt 0:00:00]} Kf7 {[%emt 0:00:00]} 52. Kg5 {[%emt 0:07:30]} Ke7 {[%emt 0:00:00]} 53. Kxh5 {[%emt 0:00:00]} Rh8+ {[%emt 0:00:00]} 54. Kg4 {[%emt 0:00:00]} Rg8+ {[%emt 0:00:00]} 55. Kh3 {[%emt 0:00:00]} Rb8 {[%emt 0:00:00]} 56. g4 {[%emt 0:00:00]} Kd7 {[%emt 0:00:00]} 57. g5 {[%emt 0:00:00]} Kc7 {[%emt 0:00:00]} 58. Rb3 {[%emt 0:00:00]} Kd6 {[%emt 0:00:00]} 59. g6 {[%emt 0:00:00]} Ke7 {[%emt 0:00:00]} 60. h5 {[%emt 0:00:00]} Kf6 {[%emt 0:00:00]} 61. Kg4 {[%emt 0:00:00]} Kg7 {[%emt 0:00:00]} 62. Kg5 {[%emt 0:00:00]} Kg8 {[%emt 0:00:00]} 63. h6 {[%emt 0:00:00]} Kh8 {[%emt 0:00:00]} 64. g7+ {[%emt 0:00:00]} Kh7 {[%emt 0:00:00]} 65. Kf6 {[%emt 0:00:00]} Rc8 {[%emt 0:00:00]} 66. bxc8=R {[%emt 0:00:00]} 1-0

[Event "FIDE WCCC Open-10 2024"]
[Site "Montesilvano"]
[Date "2024.11.25"]
[Round "10.6"]
[White "Ling, Chenxuan"]
[Black "Kolodziejczyk, Boris"]
[Result "1-0"]
[Annotator "RC"]
[ECO "E95"]
[WhiteElo "1967"]
[BlackElo "2115"]
[PlyCount "132"]
[EventDate "2024.11.18"]
[EventType "swiss"]
[EventCountry "ITA"]
[SourceTitle "playchess.com"]
[Source "ChessBase"]
[SourceQuality "1"]
[TimeControl "5400+30"]

1. d4 {[%emt 0:00:06]} Nf6 {[%emt 0:00:13]} 2. c4 {[%emt 0:00:06]} d6 {[%emt 0:00:09]} 3. Nc3 {[%emt 0:00:08]} Nbd7 {[%emt 0:00:21]} 4. Nf3 {[%emt 0:00:11]} g6 {[%emt 0:00:21]} 5. e4 {[%emt 0:00:07]} Bg7 {[%emt 0:01:03]} 6. Be2 {[%emt 0:00:12]} O-O {[%emt 0:00:07]} 7. O-O {[%emt 0:00:05]} e5 {[%emt 0:00:25]} 8. Re1 {[%emt 0:11:09]} a5 {[%emt 0:04:39]} 9. Bf1 {[%emt 0:01:32]} Re8 {[%emt 0:02:31]} 10. Be3 {[%emt 0:08:34]} h6 {[%emt 0:08:57]} 11. h3 {[%emt 0:05:04]} exd4 {[%emt 0:05:10]} 12. Bxd4 {[%emt 0:00:24]} c6 {[%emt 0:00:43]} 13. Qc2 {[%emt 0:07:13]} Qc7 {[%emt 0:01:40]} 14. Rad1 {[%emt 0:03:52]} g5 {[%emt 0:09:59]} 15. b3 {[%emt 0:15:34]} Ne5 {[%emt 0:09:29]} 16. Nxe5 {[%emt 0:07:49]} dxe5 {[%emt 0:00:16]} 17. Be3 {[%emt 0:00:06]} b6 {[%emt 0:10:33]} 18. a4 {[%emt 0:04:18]} Bf8 {[%emt 0:03:56]} 19. c5 {[%emt 0:04:44]} bxc5 {[%emt 0:03:56]} 20. Nb1 {[%emt 0:02:25]} Nd7 {[%emt 0:01:33]} 21. Na3 {[%emt 0:01:14]} Be7 {[%emt 0:02:20]} 22. Nc4 {[%emt 0:01:38]} Nf8 {[%emt 0:03:19]} 23. Qc3 {[%emt 0:02:29]} f6 {[%emt 0:00:59]} 24. Nb2 {[%emt 0:03:02]} Ne6 {[%emt 0:05:14]} 25. Bc4 {[%emt 0:01:42]} Rb8 {[%emt 0:02:25]} 26. Bd2 {[%emt 0:02:10]} Ra8 {[%emt 0:01:01]} 27. Be3 {[%emt 0:02:14]} Qb6 {[%emt 0:02:31]} 28. Qc2 {[%emt 0:03:40]} Rb8 {[%emt 0:03:28]} 29. Qe2 {[%emt 0:01:06]} Kg7 {[%emt 0:00:30]} 30. Qh5 {[%emt 0:01:38]} Rf8 {[%emt 0:00:31]} 31. Rd3 {[%emt 0:01:16]} Nd4 {[%emt 0:00:43]} 32. h4 {[%emt 0:02:39]} Bd7 {[%emt 0:02:07]} 33. Bd2 {[%emt 0:01:00]} Be8 {[%emt 0:01:04]} 34. Qd1 {[%emt 0:00:06]} Bg6 {[%emt 0:00:49]} 35. h5 {[%emt 0:01:12]} Be8 {[%emt 0:00:36]} 36. g4 {[%emt 0:01:19]} Bd7 {[%emt 0:01:23]} 37. f3 {[%emt 0:00:11]} Rfd8 {[%emt 0:00:15]} 38. Kf2 {[%emt 0:00:34]} Ra8 {[%emt 0:01:00]} 39. Ree3 {[%emt 0:01:26]} Rdb8 {[%emt 0:00:21]} 40. Be1 {[%emt 0:00:48]} Qd8 {[%emt 0:00:22]} 41. Kg2 {[%emt 0:00:24]} Bd6 {[%emt 0:00:09]} 42. Bc3 {[%emt 0:00:41]} Qe7 {[%emt 0:00:38]} 43. Be1 {[%emt 0:00:13]} Rd8 {[%emt 0:00:12]} 44. Qc1 {[%emt 0:00:31]} Bc7 {[%emt 0:00:23]} 45. Qd1 {[%emt 0:00:14]} Be6 {[%emt 0:01:13]} 46. Kg3 {[%emt 0:00:20]} Qf7 {[%emt 0:02:33]} 47. Kf2 {[%emt 0:01:04]} Qe8 {[%emt 0:01:23]} 48. Kg1 {[%emt 0:00:40]} Bf7 {[%emt 0:02:05]} 49. Bg3 {[%emt 0:00:42]} Ne6 {[%emt 0:00:44]} 50. Rxd8 {[%emt 0:00:39]} Rxd8 {[%emt 0:01:02]} 51. Rd3 {[%emt 0:00:06]} Nd4 {[%emt 0:01:57]} 52. Kg2 {[%emt 0:00:23]} Be6 {[%emt 0:00:27]} 53. Bf2 {[%emt 0:00:40]} Qe7 {[%emt 0:01:24]} 54. Bg3 {[%emt 0:00:24]} Bf7 {[%emt 0:00:14]} 55. Be1 {[%emt 0:00:26]} Ne6 {[%emt 0:00:21]} 56. Bxe6 {[%emt 0:00:53]} Bxe6 {[%emt 0:00:10]} 57. Nc4 {[%emt 0:00:11]} Bxc4 {[%emt 0:00:41]} 58. bxc4 {[%emt 0:00:17]} Rd4 {[%emt 0:00:57]} 59. Bf2 {[%emt 0:01:20]} Qd6 {[%emt 0:02:28]} 60. Bxd4 {[%emt 0:01:22]} exd4 {[%emt 0:00:05]} 61. Rd2 {[%emt 0:00:40]} Qg3+ {[%emt 0:01:08]} 62. Kf1 {[%emt 0:00:36]} Qh3+ {[%emt 0:01:04]} 63. Ke2 {[%emt 0:00:50]} Qg3 {[%emt 0:02:34]} 64. Kd3 {[%emt 0:00:25]} Qf4 {[%emt 0:00:11]} 65. Qe2 {[%emt 0:00:27]} Kf7 {[%emt 0:00:45]} 66. e5 {[%emt 0:01:48]} Bxe5 {[%emt 0:00:47]} 1-0

[Event "FIDE WCCC Open-10 2024"]
[Site "Montesilvano"]
[Date "2024.11.25"]
[Round "10.8"]
[White "Tulegen, Ramazan"]
[Black "Zhang, Junyi"]
[Result "1/2-1/2"]
[Annotator "NA RC"]
[ECO "B45"]
[WhiteElo "1818"]
[BlackElo "2061"]
[PlyCount "72"]
[EventDate "2024.11.18"]
[EventType "swiss"]
[EventCountry "ITA"]
[SourceTitle "playchess.com"]
[Source "ChessBase"]
[SourceQuality "1"]
[TimeControl "5400+30"]

1. e4 {[%emt 0:00:04]} c5 {[%emt 0:00:00]} 2. Nf3 {[%emt 0:00:13]} e6 {[%emt 0:00:01]} 3. d4 {[%emt 0:00:11]} cxd4 {[%emt 0:00:02]} 4. Nxd4 {[%emt 0:00:08]} Nf6 {[%emt 0:00:10]} 5. Nc3 {[%emt 0:00:07]} Nc6 {[%emt 0:00:01]} 6. Ndb5 {[%emt 0:00:09]} Bc5 {[%emt 0:00:10]} 7. Bf4 {[%emt 0:00:09]} O-O {[%emt 0:00:06]} 8. Bc7 {[%emt 0:00:04]} Qe7 {[%emt 0:00:03]} 9. Bd6 {[%emt 0:00:07]} Bxd6 {[%emt 0:00:02]} 10. Qxd6 {[%emt 0:00:08]} Qd8 {[%emt 0:00:11]} 11. Nc7 {[%emt 0:00:07]} Rb8 {[%emt 0:00:06]} 12. Be2 {[%emt 0:00:21]} b5 {[%emt 0:00:07]} 13. e5 {[%emt 0:00:20]} Ne8 {[%emt 0:00:02]} 14. Nxe8 {[%emt 0:00:10]} Rxe8 {[%emt 0:00:08]} 15. O-O {[%emt 0:00:10]} b4 {[%emt 0:00:13]} 16. Ne4 {[%emt 0:00:05]} Bb7 {[%emt 0:00:07]} 17. Qc5 {[%emt 0:00:55]} Ba8 {[%emt 0:08:44]} 18. Rfd1 {[%emt 0:00:15]} Qh4 {[%emt 0:04:02]} 19. Nd6 {[%emt 0:01:51]} Rf8 {[%emt 0:04:18]} 20. g3 {[%emt 0:11:33]} Qd8 {[%emt 0:08:27]} 21. Bf3 {[%emt 0:03:30]} Qg5 {[%emt 0:10:02]} 22. Bxc6 {[%emt 0:14:07]} Bxc6 {[%emt 0:01:24]} 23. Qe3 {[%emt 0:00:34]} Qh5 {[%emt 0:02:54]} 24. f4 {[%emt 0:04:07]} Bd5 {[%emt 0:05:04]} 25. Rf1 {[%emt 0:10:43]} a5 {[%emt 0:04:08]} 26. b3 {[%emt 0:05:51]} f6 {[%emt 0:03:02]} 27. Rae1 {[%emt 0:04:26]} fxe5 {[%emt 0:04:37]} 28. Qxe5 {[%emt 0:00:28]} Qg6 {[%emt 0:02:31]} 29. Rf2 {[%emt 0:07:29]} h5 {[%emt 0:01:36]} 30. Rd1 {[%emt 0:07:02]} h4 {[%emt 0:02:55]} 31. f5 {[%emt 0:02:44]} Qg5 {[%emt 0:02:55]} 32. Rxd5 {[%emt 0:05:36]} exd5 {[%emt 0:00:23]} 33. Qxd5+ {[%emt 0:00:09]} Kh7 {[%emt 0:00:11]} 34. Qd3 {[%emt 0:01:12]} Rb6 {[%emt 0:10:38]} 35. Rf4 {[%emt 0:06:56]} hxg3 {[%emt 0:05:42]} 36. f6+ {[%emt 0:01:25]} g6 {[%emt 0:02:38]} 1/2-1/2

[Event "FIDE WCCC Open-10 2024"]
[Site "Montesilvano"]
[Date "2024.11.25"]
[Round "10.13"]
[White "Andre, Tomas"]
[Black "Dayal, Samar"]
[Result "0-1"]
[Annotator "NA RC"]
[ECO "B78"]
[WhiteElo "1928"]
[BlackElo "1818"]
[PlyCount "106"]
[EventDate "2024.11.18"]
[EventType "swiss"]
[EventCountry "ITA"]
[SourceTitle "playchess.com"]
[Source "ChessBase"]
[SourceQuality "1"]
[TimeControl "5400+30"]

1. e4 {[%emt 0:00:56]} c5 {[%emt 1:31:00]} 2. Nf3 {[%emt 0:00:27]} d6 {[%emt 0:00:00]} 3. d4 {[%emt 0:00:11]} cxd4 {[%emt 0:00:00]} 4. Nxd4 {[%emt 0:00:09]} Nf6 {[%emt 0:00:00]} 5. Nc3 {[%emt 0:00:12]} g6 {[%emt 0:00:00]} 6. Be3 {[%emt 0:00:15]} Bg7 {[%emt 0:00:00]} 7. f3 {[%emt 0:00:15]} O-O {[%emt 0:00:00]} 8. Qd2 {[%emt 0:00:10]} Nc6 {[%emt 0:00:00]} 9. Bc4 {[%emt 0:00:17]} Bd7 {[%emt 0:00:00]} 10. h4 {[%emt 0:00:14]} h5 {[%emt 0:00:00]} 11. O-O-O {[%emt 0:00:10]} Rc8 {[%emt 0:00:00]} 12. Bb3 {[%emt 0:00:13]} Ne5 {[%emt 0:00:00]} 13. Kb1 {[%emt 0:00:07]} Nc4 {[%emt 0:00:00]} 14. Bxc4 {[%emt 0:00:02]} Rxc4 {[%emt 0:00:00]} 15. g4 {[%emt 0:00:12]} hxg4 {[%emt 0:00:00]} 16. h5 {[%emt 0:00:03]} Nxh5 {[%emt 0:00:00]} 17. Rdg1 {[%emt 0:00:02]} Qc8 {[%emt 0:00:00]} 18. Nd5 {[%emt 0:07:18]} Re8 {[%emt 0:00:00]} 19. fxg4 {[%emt 0:02:13]} Bxg4 {[%emt 0:00:00]} 20. b3 {[%emt 0:00:55]} Rc5 {[%emt 0:00:00]} 21. Rh4 {[%emt 0:01:53]} e6 {[%emt 0:00:00]} 22. Bh6 {[%emt 0:03:19]} exd5 {[%emt 0:00:00]} 23. Bxg7 {[%emt 0:00:31]} Kxg7 {[%emt 0:11:00]} 24. Rxh5 {[%emt 0:03:12]} Bxh5 {[%emt 0:00:00]} 25. Nf5+ {[%emt 0:00:02]} Kf6 {[%emt 0:00:00]} 26. Nxd6 {[%emt 0:00:52]} Qc6 {[%emt 0:00:00]} 27. Nxe8+ {[%emt 0:02:01]} Qxe8 {[%emt 0:00:00]} 28. Qd4+ {[%emt 0:00:20]} Qe5 {[%emt 0:00:00]} 29. Qxc5 {[%emt 0:00:38]} dxe4 {[%emt 0:00:00]} 30. Qf8 {[%emt 0:03:34]} Qd5 {[%emt 0:00:00]} 31. Qh8+ {[%emt 0:10:22]} Ke7 {[%emt 0:00:00]} 32. c4 {[%emt 0:00:18]} Qd6 {[%emt 0:00:00]} 33. Re1 {[%emt 0:00:54]} Bf3 {[%emt 0:00:00]} 34. Qh4+ {[%emt 0:01:07]} Kd7 {[%emt 0:00:00]} 35. Kc1 {[%emt 0:03:34]} Qd4 {[%emt 0:00:00]} 36. Qh3+ {[%emt 0:00:25]} Ke7 {[%emt 0:00:00]} 37. Qh4+ {[%emt 0:00:20]} Kf8 {[%emt 0:00:00]} 38. Qh6+ {[%emt 0:01:20]} Ke8 {[%emt 0:00:00]} 39. Qe3 {[%emt 0:00:35]} Qa1+ {[%emt 0:00:00]} 40. Kc2 {[%emt 0:00:24]} Qxa2+ {[%emt 0:00:00]} 41. Kc3 {[%emt 0:00:01]} Kf8 {[%emt 0:00:00]} 42. Qc5+ {[%emt 0:01:02]} Kg8 {[%emt 0:00:00]} 43. Qe5 {[%emt 0:00:36]} Qf2 {[%emt 0:00:00]} 44. Ra1 {[%emt 0:01:03]} Qe3+ {[%emt 0:00:00]} 45. Kb4 {[%emt 0:00:34]} Qb6+ {[%emt 0:00:00]} 46. Kc3 {[%emt 0:00:16]} a6 {[%emt 0:00:00]} 47. Qb8+ {[%emt 0:00:48]} Kg7 {[%emt 0:00:00]} 48. Qe5+ {[%emt 0:00:03]} Kh7 {[%emt 0:00:00]} 49. c5 {[%emt 0:00:59]} Qd8 {[%emt 0:00:00]} 50. Qd6 {[%emt 0:01:06]} Qg5 {[%emt 0:13:30]} 51. Ra2 {[%emt 0:01:49]} e3 {[%emt 0:00:00]} 52. Rh2+ {[%emt 0:01:00]} Bh5 {[%emt 0:00:00]} 53. Rh1 {[%emt 0:01:00]} e2 {[%emt 0:00:00]} 0-1

[Event "FIDE WCCC Open-10 2024"]
[Site "Montesilvano"]
[Date "2024.11.25"]
[Round "10.28"]
[White "Nikitakis, Michail"]
[Black "Nguyen, Huynh Minh Huy"]
[Result "1-0"]
[Annotator "TA"]
[ECO "B29"]
[WhiteElo "1818"]
[BlackElo "2423"]
[PlyCount "51"]
[EventDate "2024.11.18"]
[EventType "swiss"]
[EventCountry "ITA"]
[SourceTitle "playchess.com"]
[Source "ChessBase"]
[SourceQuality "1"]
[TimeControl "5400+30"]

{[%evp 10,51,39,44,45,43,41,32,29,19,18,23,101,98,74,45,91,87,252,266,251,250,283,231,297,266,649,627,686,665,679,687,654,662,638,562,1969,490,29992,29993,29996,29997,29997,1246]} 1. e4 {[%emt 0:00:03][%cal Be2e4,Be4e5][%mdl 32]} c5 {[%emt 0:00:09]} 2. Nf3 {[%emt 0:00:03]} Nf6 {[%emt 0:00:07][%cal Bg8f6,Bf6d5,Bd5e7,Be7g6][%mdl 32]} 3. e5 {[%emt 0:00:05]} Nd5 {[%emt 0:00:08]} 4. Nc3 {[%emt 0:00:04]} e6 {[%emt 0:00:10]} 5. Ne4 {[%emt 0:00:05]} f5 {[%emt 0:00:59]} 6. Nc3 {[%emt 0:00:06]} Ne7 {[%emt 0:03:54]} 7. Nb5 {[%emt 0:00:39][%cal Rb5d6] [#]} Ng6 {[%emt 0:00:53]} 8. b3 {[%emt 0:00:41]} a6 {[%emt 0:00:42] White is slightly better.} 9. Nd6+ {[%emt 0:00:20]} Bxd6 {[%emt 0:00:07]} 10. exd6 {[%emt 0:00:25]} Qf6 {[%emt 0:01:47]} (10... Qb6 $11 {keeps the balance.}) 11. d4 $16 {[%emt 0:08:12]} h6 {[%emt 0:06:58][%cal Bh7h6,Bh6h5][%mdl 32] Prevents Bg5} 12. h4 {[%emt 0:40:57] Bb2 is the strong threat. White is more active.} cxd4 {[%emt 0:07:39]} (12... O-O $14 {should be considered.}) 13. Qxd4 {[%emt 0:14:14]} e5 $2 {[%emt 0:05:56] Loses the game.} (13... Nc6 $16 14. Qxf6 gxf6) 14. Qc5 $18 {[%emt 0:05:00]} Nc6 {[%emt 0:08:01] aiming for ...e4.} 15. Bb2 {[%emt 0:12:33]} b6 {[%emt 0:06:58][%cal Bb7b6,Bb6b5,Bb5c4][%mdl 32]} 16. Qe3 {[%emt 0:10:19] Strongly threatening h5.} h5 {[%emt 0:05:03]} 17. O-O-O {[%emt 0:00:46]} ({Don't take} 17. Qxb6 Qxd6 18. Rd1 Qe7) 17... O-O $2 {[%emt 0:01:52]} (17... b5 18. a4 Bb7 19. axb5 axb5 20. Bxb5 O-O) 18. Bc4+ {[%emt 0:00:18]} Kh8 {[%emt 0:00:09]} 19. Qg5 {[%emt 0:01:39][%cal Rg5h5]} Nf4 {[%emt 0:02:47]} 20. g3 {[%emt 0:00:55]} b5 {[%emt 0:18:04]} 21. gxf4 {[%emt 0:00:30]} bxc4 {[%emt 0:00:26]} 22. Qxh5+ {[%emt 0:01:24]} Kg8 {[%emt 0:00:30]} 23. fxe5 {[%emt 0:00:54]} (23. Rhg1 $142 {[%cal Rf4e5]} Nd4 24. Nxd4 (24. bxc4 Ne2+ 25. Kb1 Nxf4 $18) 24... cxb3 25. fxe5 (25. Nxb3 Qf7 $18) 25... Qxe5 26. Ne6 (26. axb3 Qf4+ 27. Kb1 Rf7 28. Nf3 Qxf3 29. Qxf3 Bb7 30. Qc3 Bg2 31. Rxg2 Kh7) (26. Ne2 Qxb2+ 27. Kxb2 Rf7 28. cxb3 Bb7 29. Nf4 Bf3 30. Qxf3 Raf8) 26... dxe6 27. Bxe5 Rf7 28. Rg5 (28. axb3 Bb7 29. d7 Rd8 30. Qh6 Bg2 31. Rxg2 Rdxd7 32. Rxd7 Rxd7 33. Rxg7+ Rxg7 34. Qxg7#)) 23... Qe6 {[%emt 0:02:41]} (23... Qf7 $18) 24. Rhg1 {[%emt 0:00:51] White mates.} Qe8 {[%emt 0:01:31] [#]} 25. Rxg7+ $3 {[%emt 0:00:32][%mdl 512]} Kxg7 {[%emt 0:00:18]} 26. Rg1+ {[%emt 0:00:05] Weighted Error Value: White=0.45/Black=0.80.  Loses game:     	---       	Black=1      Mistake:       	---       	Black=4      Inaccurate:     	White=1     	---        OK:         	White=4     	Black=3      Best:        	White=2     	Black=2} 1-0

[Event "FIDE WCCC Open-10 2024"]
[Site "Montesilvano"]
[Date "2024.11.25"]
[Round "10.35"]
[White "Shrubok, Herman"]
[Black "Akramov, Khusan"]
[Result "0-1"]
[Annotator "NA RC"]
[ECO "B15"]
[WhiteElo "1477"]
[BlackElo "1782"]
[PlyCount "116"]
[EventDate "2024.11.18"]
[EventType "swiss"]
[EventCountry "ITA"]
[SourceTitle "playchess.com"]
[Source "ChessBase"]
[SourceQuality "1"]
[TimeControl "5400+30"]

1. e4 {[%emt 0:01:23]} c6 {[%emt 0:00:02]} 2. d4 {[%emt 0:01:32]} d5 {[%emt 0:00:05]} 3. Nc3 {[%emt 0:01:26]} dxe4 {[%emt 0:00:03]} 4. Nxe4 {[%emt 0:01:22]} Nf6 {[%emt 0:00:15]} 5. Nxf6+ {[%emt 0:01:36]} exf6 {[%emt 0:00:02]} 6. Be3 {[%emt 0:02:18]} Bd6 {[%emt 0:00:05]} 7. Bd3 {[%emt 0:01:41]} O-O {[%emt 0:00:09]} 8. Ne2 {[%emt 0:01:20]} Re8 {[%emt 0:00:24]} 9. O-O {[%emt 0:02:38]} Nd7 {[%emt 0:00:20]} 10. Ng3 {[%emt 0:02:40]} Nf8 {[%emt 0:01:14]} 11. c4 {[%emt 0:02:17]} Be6 {[%emt 0:00:40]} 12. Qc2 {[%emt 0:03:08]} Ng6 {[%emt 0:02:44]} 13. Rfd1 {[%emt 0:05:41]} Rc8 {[%emt 0:08:17]} 14. Ne4 {[%emt 0:03:12]} Bb8 {[%emt 0:00:55]} 15. Nc5 {[%emt 0:02:54]} Qc7 {[%emt 0:00:43]} 16. g3 {[%emt 0:01:41]} Bg4 {[%emt 0:04:08]} 17. Be2 {[%emt 0:02:15]} Bxe2 {[%emt 0:00:30]} 18. Qxe2 {[%emt 0:00:10]} f5 {[%emt 0:08:01]} 19. d5 {[%emt 0:03:20]} cxd5 {[%emt 0:00:08]} 20. Rxd5 {[%emt 0:01:20]} f4 {[%emt 0:00:59]} 21. gxf4 {[%emt 0:00:46]} Nxf4 {[%emt 0:00:14]} 22. Bxf4 {[%emt 0:01:04]} Qxf4 {[%emt 0:00:51]} 23. Qh5 {[%emt 0:01:54]} Rc6 {[%emt 0:07:09]} 24. Rf5 {[%emt 0:09:23]} Rg6+ {[%emt 0:01:21]} 25. Kh1 {[%emt 0:45:59]} Qc7 {[%emt 0:07:20]} 26. f4 {[%emt 0:00:00]} b6 {[%emt 0:04:49]} 27. Nb3 {[%emt 0:00:00]} Qxc4 {[%emt 0:01:43]} 28. Qf3 {[%emt 0:00:00]} Qe6 {[%emt 0:01:30]} 29. Rg5 {[%emt 0:00:00]} Rxg5 {[%emt 0:00:55]} 30. fxg5 {[%emt 0:00:00]} Qe5 {[%emt 0:00:17]} 31. Qg2 {[%emt 0:00:00]} a5 {[%emt 0:06:06]} 32. Rf1 {[%emt 0:00:00]} a4 {[%emt 0:01:16]} 33. Nc1 {[%emt 0:00:00]} Bd6 {[%emt 0:06:26]} 34. Nd3 {[%emt 0:00:00]} Qe2 {[%emt 0:02:07]} 35. Qxe2 {[%emt 0:00:00]} Rxe2 {[%emt 0:00:02]} 36. Rf2 {[%emt 0:00:00]} Rxf2 {[%emt 0:00:13]} 37. Nxf2 {[%emt 0:00:00]} Bf4 {[%emt 0:00:04]} 38. Ne4 {[%emt 0:00:00]} Be5 {[%emt 0:00:07]} 39. b3 {[%emt 0:00:00]} axb3 {[%emt 0:00:34]} 40. axb3 {[%emt 0:00:00]} Kf8 {[%emt 0:00:42]} 41. Kg2 {[%emt 0:00:00]} Ke7 {[%emt 0:00:07]} 42. h4 {[%emt 0:00:00]} Ke6 {[%emt 0:00:55]} 43. Kf3 {[%emt 0:00:00]} Kd5 {[%emt 0:04:20]} 44. Ke3 {[%emt 0:00:00]} Kc6 {[%emt 0:00:08]} 45. Kd3 {[%emt 0:00:00]} Kb5 {[%emt 0:00:10]} 46. Nd2 {[%emt 0:00:00]} g6 {[%emt 0:02:44]} 47. Nf3 {[%emt 0:00:00]} Bg7 {[%emt 0:02:22]} 48. Nd2 {[%emt 0:00:00]} Kb4 {[%emt 0:00:09]} 49. Nc4 {[%emt 0:00:00]} b5 {[%emt 0:00:24]} 50. Nd2 {[%emt 0:12:30]} Bc3 {[%emt 0:00:21]} 51. Ne4 {[%emt 0:00:00]} Be1 {[%emt 0:00:07]} 52. Nd6 {[%emt 0:00:00]} Bxh4 {[%emt 0:00:11]} 53. Nxf7 {[%emt 0:00:00]} Kxb3 {[%emt 0:00:04]} 54. Nd6 {[%emt 0:00:00]} b4 {[%emt 0:00:08]} 55. Ne4 {[%emt 0:00:00]} Ka2 {[%emt 0:00:23]} 56. Kc4 {[%emt 0:00:00]} b3 {[%emt 0:00:14]} 57. Nc3+ {[%emt 0:00:00]} Kb2 {[%emt 0:00:21]} 58. Nd1+ {[%emt 0:00:00]} Kc1 {[%emt 0:00:09]} 0-1